fUST/lending_fUST_20260405
["ID","MTS","AMOUNT","RATE_DAILY","PERIOD"]
[419802192,1775388643935,-500.0,0.00018466,2]
[419802194,1775388643945,-967.46972754,0.00018466,2]
[419802196,1775388643955,-967.46972754,0.00018466,2]
[419802199,1775388643968,-500.0,0.00018466,2]
[419802200,1775388643978,-967.46972754,0.00018466,2]
[419802202,1775388643988,-967.46972754,0.00018466,2]
[419802204,1775388643998,-500.0,0.00018466,2]
[419802206,1775388644007,-967.46972754,0.00018466,2]
[419802208,1775388644017,-500.0,0.00018466,2]
[419802210,1775388644028,-500.0,0.00018466,2]
[419802212,1775388644038,-967.46972754,0.00018466,2]
[419802214,1775388644047,-967.46972754,0.00018466,2]
[419802216,1775388644057,-640.28353242,0.00018466,2]
[419802218,1775388644067,-967.46972754,0.00018466,2]
[419802220,1775388644077,-967.46972754,0.00018466,2]
[419802222,1775388644087,-500.0,0.00018466,2]
[419802224,1775388644096,-500.0,0.00018466,2]
[419802226,1775388644105,-967.46972754,0.00018466,2]
[419802228,1775388644115,-967.46972754,0.00018466,2]
[419802230,1775388644125,-500.0,0.00018466,2]
[419802232,1775388644134,-500.0,0.00018466,2]
[419802234,1775388644144,-967.46972754,0.00018466,2]
[419802236,1775388644153,-967.46972754,0.00018466,2]
[419802238,1775388644163,-967.46972754,0.00018466,2]
[419802240,1775388644173,-967.46972754,0.00018466,2]
[419802242,1775388644182,-500.0,0.00018466,2]
[419802244,1775388644192,-1015.84321393,0.00018466,2]
[419802246,1775388644201,-1015.84321393,0.00018466,2]
[419802248,1775388644212,-1015.84321393,0.00018466,2]
[419802250,1775388644222,-500.0,0.00018466,2]
[419802252,1775388644233,-500.0,0.00018466,2]
[419802254,1775388644242,-1015.84321393,0.00018466,2]
[419802255,1775388644252,-765.54345382,0.00018466,2]
[419802519,1775388646863,-250.29976011,0.00018466,2]
[419802521,1775388646872,-1015.84321393,0.00018466,2]
[419802523,1775388646881,-1015.84321393,0.00018466,2]
[419802525,1775388646891,-1015.84321393,0.00018466,2]
[419802526,1775388646902,-7346.20214196,0.00018467,2]
[419803432,1775388738446,-300.0,0.00018365,2]
[419803433,1775388738468,-300.0,0.00018366,2]
[419803434,1775388738479,-3929.76136606,0.00018366,2]
[419803435,1775388757394,500.0,0.00034787,120]
[419803443,1775389054409,500.0,0.00034785,120]
[419803445,1775389098859,500.0,0.00034785,120]
[419803446,1775389099108,500.480231,0.00034785,120]
[419803447,1775389142434,195.0,0.00034785,120]
[419803451,1775389173298,1000.0,0.00032877,120]
[419803453,1775389189184,400.0,0.00034785,120]
[419803458,1775389354650,500.0,0.00034786,120]
[419803477,1775389646054,500.0,0.00034786,120]
[419803511,1775389832486,-1000.0,0.00013699,2]
[419803512,1775389832496,-615.0,0.00013699,2]
[419803513,1775389832506,-300.0,0.00016665,2]
[419803514,1775389832516,-300.0,0.00016665,2]
[419803515,1775389832526,-300.0,0.00016665,2]
[419803516,1775389832536,-1200.0,0.00016665,2]
[419803517,1775389832545,-349.72663842,0.00016666,2]
[419803518,1775389832555,-629.50794915,0.00016666,2]
[419803519,1775389832565,-1119.12524294,0.00016666,2]
[419803520,1775389832574,-623.24655321,0.00016666,2]
[419803592,1775389838844,-1125.38663888,0.00016666,2]
[419803594,1775389838854,-2518.0317966,0.00016666,2]
[419803596,1775389838864,-3423.89373543,0.00016666,2]
[419803598,1775389838874,-228.398104,0.00016666,2]
[419803600,1775389838883,-261.02640457,0.00016666,2]
[419803602,1775389838892,-407.44590338,0.00016666,2]
[419803603,1775389838902,-300.0,0.00016997,2]
[419803604,1775389838912,-600.0,0.00016998,2]
[419803605,1775389838922,-820.9629336,0.00018066,2]
[419803606,1775389838931,-3413.18225315,0.00018073,2]
[419803607,1775389838941,-151.5,0.00018092,2]
[419803608,1775389838951,-191.70521398,0.00018092,2]
[419803609,1775389838960,-151.5566,0.00018165,2]
[419803610,1775389838970,-500.0,0.00018165,2]
[419803611,1775389838979,-500.0,0.00018165,2]
[419803612,1775389838989,-298.20839039,0.00018165,2]
[419803614,1775389838999,-500.0,0.00018165,2]
[419803616,1775389839008,-500.0,0.00018165,2]
[419803618,1775389839018,-500.0,0.00018165,2]
[419803620,1775389839028,-168.14147198,0.00018165,2]
[419803622,1775389839038,-500.0,0.00018165,2]
[419803624,1775389839047,-500.0,0.00018165,2]
[419803626,1775389839057,-500.0,0.00018165,2]
[419803628,1775389839066,-500.0,0.00018165,2]
[419803630,1775389839075,-500.0,0.00018165,2]
[419803632,1775389839084,-500.0,0.00018165,2]
[419803634,1775389839093,-285.57672765,0.00018165,2]
[419803636,1775389839106,-214.42327235,0.00018165,2]
[419803638,1775389839115,-500.0,0.00018165,2]
[419803640,1775389839124,-214.42886637,0.00018165,2]
[419804104,1775389843902,-285.57113363,0.00018165,2]
[419804106,1775389843912,-486.41886858,0.00018165,2]
[419804111,1775389843956,-13.58113142,0.00018165,2]
[419804113,1775389843966,-500.0,0.00018165,2]
[419804115,1775389843976,-500.0,0.00018165,2]
[419804117,1775389843986,-500.0,0.00018165,2]
[419804119,1775389843997,-500.0,0.00018165,2]
[419804121,1775389844006,-500.0,0.00018165,2]
[419804123,1775389844015,-47.99085934,0.00018165,2]
[419804125,1775389844026,-361.75364196,0.00018165,2]
[419804127,1775389844036,-500.0,0.00018165,2]
[419804129,1775389844045,-938.96139036,0.00018165,2]
[419804131,1775389844055,-646.95610256,0.00018165,2]
[419804133,1775389844066,-292.0052878,0.00018165,2]
[419804134,1775389844076,-500.0,0.00018165,2]
[419804136,1775389844085,-938.96139036,0.00018165,2]
[419804138,1775389844095,-500.0,0.00018165,2]
[419804140,1775389844105,-268.71067549,0.00018165,2]
[419804143,1775389844116,-670.25071487,0.00018165,2]
[419804145,1775389844125,-938.96139036,0.00018165,2]
[419804146,1775389844135,-398.0205248,0.00018165,2]
[419804149,1775389844147,-51.9794752,0.00018165,2]
[419804151,1775389844157,-448.25249292,0.00018165,2]
[419804408,1775389846946,-51.74750708,0.00018165,2]
[419804410,1775389846956,-938.96139036,0.00018165,2]
[419804412,1775389846965,-938.96139036,0.00018165,2]
[419804414,1775389846975,-938.96139036,0.00018165,2]
[419804417,1775389846986,-938.96139036,0.00018165,2]
[419804419,1775389846995,-938.96139036,0.00018165,2]
[419804421,1775389847005,-938.96139036,0.00018165,2]
[419804423,1775389847015,-938.96139036,0.00018165,2]
[419804425,1775389847025,-575.05310131,0.00018165,2]
[419804428,1775389847047,-680.19002056,0.00018165,2]
[419804430,1775389847057,-1255.24312187,0.00018165,2]
[419804432,1775389847066,-24207.32625423,0.00018166,2]
[419806880,1775389960595,500.0,0.00034786,120]
[419806884,1775390045238,679.69738232,0.00034786,120]
[419806959,1775390253493,500.0,0.00034783,120]
[419806964,1775390373844,614.333422,0.00034783,120]
[419806973,1775390460351,10105.77486716,0.00034783,120]
[419806981,1775390545921,500.0,0.00034783,120]
[419806983,1775390821175,340.97854698,0.00034783,120]
[419806988,1775390845222,500.0,0.00034783,120]
[419806989,1775390896091,500.0,0.00034783,120]
[419806990,1775390896329,500.470221,0.00034783,120]
[419806991,1775391026108,314.0,0.00026016,120]
[419806997,1775391031688,-1000.0,0.00013699,2]
[419806999,1775391031698,-349.64553418,0.00016957,2]
[419807066,1775391038009,-3220.11772112,0.00016957,2]
[419807069,1775391038022,-994.86296297,0.00017105,2]
[419807072,1775391038043,-5.13703703,0.00017105,2]
[419807074,1775391038056,-185.073491,0.00017212,2]
[419807076,1775391038068,-127.75219318,0.0001756,2]
[419807287,1775391040642,-678.0,0.0001756,2]
[419807290,1775391040656,-84.3151439,0.0001756,2]
[419807294,1775391040696,-114.87410982,0.0001756,2]
[419807297,1775391040707,-885.12589018,0.00017864,2]
[419807529,1775391043059,-500.0,0.00017384,2]
[419807531,1775391043073,-4500.0,0.00017384,2]
[419807533,1775391043085,-500.0,0.000178,2]
[419807553,1775391043271,-2486.53447148,0.000178,2]
[419807556,1775391043283,-314.87410982,0.00017864,2]
[419807558,1775391043295,-300.0,0.00017865,2]
[419807560,1775391043306,-411.8942278,0.00017865,2]
[419807562,1775391043318,-500.0,0.00017865,2]
[419807564,1775391043329,-16815.27504939,0.00017866,2]
[419807613,1775391045961,-12108.31333847,0.00017866,2]
[419807614,1775391046174,-528.79904169,0.00017866,2]
[419807615,1775391046228,-686.84806561,0.00017866,2]
[419807629,1775391146709,500.0,0.00034783,120]
[419807630,1775391298339,2178.2,0.00032877,120]
[419807633,1775391386344,324.0,0.00026016,120]
[419807634,1775391445253,500.0,0.00034783,120]
[419807636,1775391576809,1000.0,0.00034783,120]
[419807637,1775391577735,1000.0,0.00034783,120]
[419807638,1775391578509,1000.0,0.00034783,120]
[419807639,1775391579159,1000.0,0.00034783,120]
[419807640,1775391589616,1175.27,0.00034783,120]
[419807641,1775391612522,1000.0,0.00034783,120]
[419807643,1775391746079,500.0,0.00034783,120]
[419807644,1775391776744,250.0,6e-05,10]
[419807645,1775391801714,250.0,9.003e-05,2]
[419807758,1775391897719,500.0,0.00034783,120]
[419807759,1775391897938,500.0,0.00034783,120]
[419807760,1775391898147,500.0,0.00034783,120]
[419807761,1775391898370,500.0,0.00034783,120]
[419807762,1775391898586,500.0,0.00034783,120]
[419807763,1775391898818,500.0,0.00034783,120]
[419807764,1775391899040,500.0,0.00034783,120]
[419807765,1775391899256,436.30807026,0.00034783,120]
[419807771,1775391955220,2000.0,0.00032877,120]
[419807772,1775391965897,1620.0,0.00032877,120]
[419807773,1775391994991,1713.3,0.00032876,120]
[419807778,1775392041919,1000.0,0.0003287,120]
[419807779,1775392045778,500.0,0.00034783,120]
[419807877,1775392238167,-1000.0,0.00013699,2]
[419807879,1775392238177,-324.55466736,0.00016666,2]
[419807881,1775392238186,-187.543,0.00017313,2]
[419807883,1775392238195,-2684.97017575,0.00017468,2]
[419807885,1775392238204,-357.03661204,0.00017543,2]
[419807887,1775392238213,-300.0,0.00017565,2]
[419807889,1775392238222,-10848.97515795,0.00017566,2]
[419808146,1775392240716,-10462.43085413,0.00017566,2]
[419808376,1775392243200,-13399.99999998,0.00017566,2]
[419808697,1775392246445,-8396.97529038,0.00017566,2]
[419809631,1775392338875,-196.92292671,0.00016717,14]
[419809632,1775392338901,-300.0,0.00017565,2]
[419809633,1775392348686,500.0,0.00034783,120]
[419809685,1775392572647,1313.5675,0.0003,120]
[419809686,1775392610477,829.98,0.00034781,120]
[419809687,1775392646387,500.0,0.00034781,120]
[419809701,1775392946004,500.0,0.00034782,120]
[419809722,1775393245805,500.0,0.00034782,120]
[419809795,1775393438257,-196.92292671,0.00013365,14]
[419809796,1775393438267,-1000.0,0.00013699,2]
[419809797,1775393438276,-480.69323318,0.00013699,2]
[419809800,1775393438363,-134.30676682,0.00013699,2]
[419809802,1775393438373,-257.30630363,0.00016394,2]
[419809803,1775393438382,-401.63905832,0.00016394,2]
[419809804,1775393438392,-225.14301568,0.00016394,2]
[419809805,1775393438401,-27.68192884,0.00016458,2]
[419809806,1775393438413,-157.39156216,0.00016458,2]
[419809808,1775393438422,-830.23673185,0.00016583,2]
[419809809,1775393438439,-169.76326815,0.00016583,2]
[419809810,1775393438449,-437.9181444,0.00016746,2]
[419809811,1775393438458,-457.8227466,0.00016746,2]
[419809813,1775393438468,-179.86368704,0.00017257,2]
[419809814,1775393438477,-23.52090802,0.00017257,2]
[419809815,1775393438488,-299.90997402,0.00017257,2]
[419809816,1775393438498,-2412.13235284,0.00017466,2]
[419809818,1775393438507,-300.0,0.00017499,2]
[419809819,1775393438517,-187.3104873,0.000175,2]
[419809820,1775393438526,-1957.856,0.000175,2]
[419809821,1775393438536,-557.5788265,0.000175,2]
[419809823,1775393438546,-557.5788265,0.000175,2]
[419809824,1775393438555,-1142.51501903,0.000175,2]
[419810075,1775393441370,-568.68040404,0.000175,2]
[419810076,1775393441425,-519.11988293,0.000175,2]
[419810077,1775393441434,-151.0,0.0001751,2]
[419810078,1775393441444,-151.0,0.0001751,2]
[419810079,1775393441453,-151.0,0.0001751,2]
[419810081,1775393441462,-169.066584,0.0001751,2]
[419810083,1775393441472,-151.0,0.0001751,2]
[419810085,1775393441481,-151.0,0.0001751,2]
[419810087,1775393441491,-2030.296672,0.00017555,2]
[419810089,1775393441500,-380.22038197,0.00017555,2]
[419810091,1775393441509,-166.0,0.00017566,2]
[419810093,1775393441518,-404.78190896,0.00017566,2]
[419810316,1775393443457,-542.21809104,0.00017566,2]
[419810318,1775393443467,-947.0,0.00017566,2]
[419810320,1775393443476,-758.32474028,0.00017566,2]
[419810322,1775393443486,-272.61022012,0.00017566,2]
[419810324,1775393443496,-706.22193703,0.00017566,2]
[419810326,1775393443506,-166.0,0.00017566,2]
[419810328,1775393443515,-151.0,0.000176,2]
[419810330,1775393443525,-151.0,0.000176,2]
[419810332,1775393443534,-151.0,0.00017609,2]
[419810334,1775393443544,-151.0,0.00017609,2]
[419810336,1775393443554,-2105.41764886,0.0001761,2]
[419810338,1775393443563,-151.0,0.0001761,2]
[419810340,1775393443573,-151.0,0.0001761,2]
[419810342,1775393443583,-151.0,0.0001761,2]
[419810344,1775393443593,-208.565582,0.00017655,2]
[419810347,1775393443602,-2183.31810187,0.00017665,2]
[419810350,1775393443613,-500.0,0.00017673,2]
[419810353,1775393443622,-151.0,0.00017673,2]
[419810356,1775393443631,-5244.3718829,0.00017711,2]
[419810359,1775393443641,-332.051895,0.00017711,2]
[419810362,1775393443650,-151.0,0.00017711,2]
[419810364,1775393443659,-332.051895,0.00017719,2]
[419810366,1775393443669,-2260.3302459,0.0001772,2]
[419810368,1775393443680,-3.77062574,0.0001772,2]
[419810370,1775393443690,-2347.87260389,0.00017775,2]
[419810372,1775393443700,-2434.74389024,0.0001783,2]
[419810374,1775393443709,-2524.82941417,0.00017885,2]
[419810376,1775393443719,-740.1189128,0.0001794,2]
[419810378,1775393443728,-300.36,0.00018019,2]
[419810380,1775393443738,-569.98638677,0.00018048,2]
[419810382,1775393443748,-2312.83697232,0.00018048,2]
[419810384,1775393443757,-227.5929513,0.00018165,2]
[419810386,1775393443767,-685.74406495,0.00018165,2]
[419810388,1775393443776,-260.10623005,0.00018165,2]
[419810390,1775393443787,-220.1375885,0.00018221,2]
[419810392,1775393443797,-500.0,0.00018221,2]
[419810395,1775393443807,-2228.614,0.0001825,2]
[419810397,1775393443817,-644.0,0.0001825,2]
[419810399,1775393443827,-1406.0,0.0001825,2]
[419810401,1775393443836,-326.17142517,0.00018294,2]
[419810402,1775393443846,-500.0,0.00018294,2]
[419810404,1775393443855,-502.83598002,0.00018373,2]
[419810406,1775393443864,-230.33171921,0.00018373,2]
[419810408,1775393443874,-483.37708546,0.00018373,2]
[419810411,1775393443884,-500.0,0.00018373,2]
[419810413,1775393443895,-309.78414567,0.00018373,2]
[419810415,1775393443905,-500.0,0.0001838,2]
[419810417,1775393443914,-500.0,0.0001838,2]
[419810419,1775393443923,-208.74587327,0.0001838,2]
[419810421,1775393443932,-500.0,0.0001838,2]
[419810423,1775393443941,-500.0,0.0001838,2]
[419810424,1775393443950,-500.0,0.0001838,2]
[419810426,1775393443960,-500.0,0.0001838,2]
[419810429,1775393443970,-500.0,0.0001838,2]
[419810431,1775393443980,-58.07430227,0.0001838,2]
[419813258,1775393523204,175.65345189,0.00034782,120]
[419813273,1775393563107,500.0,0.00034782,120]
[419813394,1775393855134,500.0,0.00034782,120]
[419813398,1775393968842,259.0,0.00034782,120]
[419813423,1775394109727,-1000.0,0.00013699,2]
[419813482,1775394604572,865.74241313,7.6e-05,2]
[419813536,1775394638510,-2505.66351195,0.00012897,2]
[419814034,1775394643547,-1909.34647797,0.00012897,2]
[419814046,1775394643656,-584.99001008,0.00012897,2]
[419814048,1775394643666,-1013.0,0.00013026,2]
[419814050,1775394643676,-1924.27040867,0.00013027,2]
[419814299,1775394646481,-3075.72959133,0.00013027,2]
[419814301,1775394646491,-300.0,0.00013157,2]
[419814303,1775394646501,-300.0,0.00013157,2]
[419814305,1775394646511,-300.0,0.00013157,2]
[419814307,1775394646520,-5000.0,0.00013159,2]
[419814309,1775394646530,-805.90117197,0.00013699,2]
[419814332,1775394646751,-194.09882803,0.00013699,2]
[419814334,1775394646761,-363.0,0.00014427,2]
[419814336,1775394646771,-324.958712,0.0001756,2]
[419814338,1775394646781,-2165.55132668,0.00017686,2]
[419814339,1775394646790,-737.0,0.00017707,2]
[419814341,1775394646800,-184.0,0.00017707,2]
[419814343,1775394646810,-440.0,0.00017707,2]
[419814345,1775394646820,-533.277,0.00017707,2]
[419814347,1775394646831,-500.0,0.00017747,2]
[419814349,1775394646841,-500.0,0.00017747,2]
[419814351,1775394646850,-500.0,0.00017747,2]
[419814353,1775394646860,-500.0,0.00017747,2]
[419814355,1775394646870,-500.0,0.00017747,2]
[419814357,1775394646879,-500.0,0.00017747,2]
[419814359,1775394646889,-500.0,0.00017747,2]
[419814361,1775394646898,-500.0,0.00017747,2]
[419814362,1775394646908,-500.0,0.00017747,2]
[419814364,1775394646918,-500.0,0.00017747,2]
[419814366,1775394646927,-500.0,0.00017747,2]
[419814368,1775394646937,-500.0,0.00017747,2]
[419814370,1775394646946,-500.0,0.00017747,2]
[419814372,1775394646956,-500.0,0.00017747,2]
[419814374,1775394646966,-500.0,0.00017747,2]
[419814376,1775394646975,-500.0,0.00017747,2]
[419814378,1775394646984,-431.65912988,0.00017747,2]
[419814380,1775394646994,-500.0,0.00017747,2]
[419814381,1775394647004,-500.0,0.00017747,2]
[419814383,1775394647013,-500.0,0.00017747,2]
[419814385,1775394647022,-500.0,0.00017747,2]
[419814387,1775394647032,-500.0,0.00017747,2]
[419814389,1775394647042,-500.0,0.00017747,2]
[419814391,1775394647051,-396.10995102,0.00017747,2]
[419814393,1775394647061,-500.0,0.00017747,2]
[419814395,1775394647070,-500.0,0.00017747,2]
[419814397,1775394647080,-500.0,0.00017747,2]
[419814399,1775394647090,-500.0,0.00017747,2]
[419814401,1775394647099,-12249.18255197,0.00017748,2]
[419814771,1775394879478,2397.0,0.000319,120]
[419814772,1775394912861,160.0,0.000328,120]
[419814776,1775395217967,939.94,0.00034792,120]
[419814777,1775395218224,939.94,0.00034792,120]
[419814780,1775395218438,939.94,0.00034792,120]
[419814781,1775395218653,939.94,0.00034792,120]
[419814782,1775395218882,939.94,0.00034792,120]
[419814783,1775395219104,939.94,0.00034792,120]
[419814784,1775395219339,939.94,0.00034792,120]
[419814785,1775395219573,939.94,0.00034792,120]
[419814786,1775395219788,939.94,0.00034792,120]
[419814787,1775395220005,939.94,0.00034792,120]
[419814788,1775395220253,939.94,0.00034792,120]
[419814789,1775395220481,939.94,0.00034792,120]
[419814790,1775395220714,939.94,0.00034792,120]
[419814791,1775395220930,939.94,0.00034792,120]
[419814792,1775395221162,939.94,0.00034792,120]
[419814793,1775395221387,939.94,0.00034792,120]
[419814794,1775395221618,939.94,0.00034792,120]
[419814795,1775395221845,939.94,0.00034792,120]
[419814796,1775395222061,939.94,0.00034792,120]
[419814797,1775395222281,939.94,0.00034792,120]
[419814798,1775395222539,939.94,0.00034792,120]
[419814799,1775395222763,939.94,0.00034792,120]
[419814800,1775395223018,939.94,0.00034792,120]
[419814801,1775395223235,939.98295071,0.00034792,120]
[419814802,1775395227586,500.24512,0.00034792,120]
[419814803,1775395244417,3000.0,9e-05,2]
[419815096,1775395832435,-2378.3569291,0.00012897,2]
[419815097,1775395832447,-1015.15,0.00012897,2]
[419815148,1775395838559,-1477.8415112,0.00012897,2]
[419815149,1775395838725,-128.6515597,0.00012897,2]
[419815150,1775395838735,-782.0,0.00013026,2]
[419815151,1775395838744,-392.23240578,0.00013027,2]
[419815152,1775395838755,-4607.76759422,0.00013027,2]
[419815153,1775395838764,-300.0,0.00013557,2]
[419815154,1775395838773,-1000.0,0.00013699,2]
[419815155,1775395838783,-301.52388986,0.00014851,2]
[419815156,1775395838792,-406.00956847,0.00015632,2]
[419815157,1775395838802,-349.2911012,0.00015955,2]
[419815158,1775395838811,-664.1037902,0.00015955,2]
[419815159,1775395838820,-868.1777568,0.00015955,2]
[419815160,1775395838829,-151.97493871,0.00017537,2]
[419815161,1775395838839,-168.9517238,0.00017547,2]
[419815162,1775395838848,-503.05351913,0.00017547,2]
[419815163,1775395838858,-500.0,0.00017547,2]
[419815164,1775395838867,-500.0,0.00017547,2]
[419815165,1775395838877,-500.0,0.00017547,2]
[419815166,1775395838886,-500.0,0.00017547,2]
[419815167,1775395838895,-500.0,0.00017547,2]
[419815168,1775395838905,-500.0,0.00017547,2]
[419815169,1775395838914,-500.0,0.00017547,2]
[419815170,1775395838923,-500.0,0.00017547,2]
[419815171,1775395838932,-500.0,0.00017547,2]
[419815172,1775395838941,-500.0,0.00017547,2]
[419815173,1775395838950,-500.0,0.00017547,2]
[419815174,1775395838959,-500.0,0.00017547,2]
[419815175,1775395838977,-500.0,0.00017547,2]
[419815176,1775395838989,-500.0,0.00017547,2]
[419815177,1775395838999,-500.0,0.00017547,2]
[419815178,1775395839009,-500.0,0.00017547,2]
[419815179,1775395839018,-500.0,0.00017547,2]
[419815180,1775395839027,-500.0,0.00017547,2]
[419815181,1775395839037,-500.0,0.00017547,2]
[419815182,1775395839047,-265.82092423,0.00017547,2]
[419815183,1775395839057,-500.0,0.00017547,2]
[419815184,1775395839072,-500.0,0.00017547,2]
[419815185,1775395839085,-624.69726651,0.00017547,2]
[419815186,1775395839102,-500.0,0.00017547,2]
[419815187,1775395839116,-500.0,0.00017547,2]
[419815188,1775395839129,-500.0,0.00017547,2]
[419815189,1775395839140,-500.0,0.00017547,2]
[419815190,1775395839154,-500.0,0.00017547,2]
[419815191,1775395839168,-500.0,0.00017547,2]
[419815192,1775395839181,-500.0,0.00017547,2]
[419815193,1775395839194,-390.48838488,0.00017547,2]
[419815194,1775395839208,-500.0,0.00017547,2]
[419815195,1775395839222,-500.0,0.00017547,2]
[419815196,1775395839234,-500.0,0.00017547,2]
[419815197,1775395839247,-608.66706445,0.00017547,2]
[419815198,1775395839259,-500.0,0.00017547,2]
[419815199,1775395839269,-500.0,0.00017547,2]
[419815200,1775395839283,-500.0,0.00017547,2]
[419815201,1775395839296,-549.12358644,0.00017547,2]
[419815202,1775395839309,-549.12358644,0.00017547,2]
[419815203,1775395839322,-549.12358644,0.00017547,2]
[419815204,1775395839335,-549.12358644,0.00017547,2]
[419815205,1775395839348,-549.12358644,0.00017547,2]
[419815206,1775395839361,-549.12358644,0.00017547,2]
[419815207,1775395839372,-549.12358644,0.00017547,2]
[419815208,1775395839385,-549.12358644,0.00017547,2]
[419815209,1775395839399,-549.12358644,0.00017547,2]
[419815210,1775395839411,-549.12358644,0.00017547,2]
[419815211,1775395839423,-549.12358644,0.00017547,2]
[419815212,1775395839437,-549.12358644,0.00017547,2]
[419815213,1775395839449,-549.12358644,0.00017547,2]
[419815214,1775395839461,-549.12358644,0.00017547,2]
[419815215,1775395839473,-549.12358644,0.00017547,2]
[419815216,1775395839486,-549.12358644,0.00017547,2]
[419815217,1775395839499,-549.12358644,0.00017547,2]
[419815218,1775395839510,-570.24372439,0.00017547,2]
[419815219,1775395839521,-570.24372439,0.00017547,2]
[419815220,1775395839532,-570.24372439,0.00017547,2]
[419815221,1775395839544,-570.24372439,0.00017547,2]
[419815222,1775395839559,-570.24372439,0.00017547,2]
[419815223,1775395839571,-570.24372439,0.00017547,2]
[419815224,1775395839581,-570.24372439,0.00017547,2]
[419815225,1775395839591,-570.24372439,0.00017547,2]
[419815226,1775395839601,-570.24372439,0.00017547,2]
[419815227,1775395839612,-1008.61858747,0.00017547,2]
[419815228,1775395839625,-48190.24792532,0.00017548,2]
[419815229,1775395839638,-85335.04117286,0.00017548,2]
[419815386,1775395841344,-6423.94677741,0.00017548,2]
[419815389,1775395841357,-8555.88211101,0.00017548,2]
[419815391,1775395841371,-684.77,0.00017548,2]
[419815393,1775395841384,-671.77936835,0.00017548,2]
[419815902,1775395846848,-1683.40749323,0.00017372,2]
[419815904,1775395846858,-146683.75951308,0.00017548,2]
[419815910,1775395846906,-1488.79058318,0.00017548,2]
[419815912,1775395846919,-285.65783835,0.00017548,2]
[419816135,1775395849051,-47182.92973611,0.00017548,2]
[419816137,1775395849063,-45338.3641628,0.00017548,2]
[419816139,1775395849074,-1563.83098617,0.00017548,2]
[419817145,1775395938157,-196.9264232,0.00016864,2]
[419817146,1775395938170,-803.0735768,0.00016864,2]
[419817147,1775395938179,-196.9264232,0.00016864,2]
[419817189,1775396360992,250.120056,0.00034787,120]
[419817243,1775397032641,-328.19508468,0.00013699,2]
[419817337,1775397041717,-671.80491532,0.00013699,2]
[419817338,1775397041727,-615.0,0.00013699,2]
[419817340,1775397041737,-1234.33931691,0.00014796,2]
[419817342,1775397041747,-2194.38100785,0.00014796,2]
[419817344,1775397041758,-3428.72032476,0.00014796,2]
[419817346,1775397041768,-161.0,0.00015573,2]
[419817348,1775397041778,-300.0,0.00015573,2]
[419817350,1775397041787,-187.544,0.00016993,2]
[419817352,1775397041797,-1103.30465334,0.00017075,2]
[419817354,1775397041805,-151.97493871,0.0001724,2]
[419817356,1775397041815,-104563.32457247,0.0001724,2]
[419817358,1775397041827,-19787.20838559,0.0001724,2]
[419817361,1775397041838,-1520.08874999,0.0001724,2]
[419817363,1775397041849,-5131.64912051,0.0001724,2]
[419817365,1775397041860,-2849.8060003,0.0001724,2]
[419817563,1775397044346,-13447.6648025,0.0001724,2]
[419817565,1775397044358,-19980.00000003,0.0001724,2]
[419817837,1775397046899,-16415.05310804,0.0001724,2]
[419817839,1775397046910,-5397.55333415,0.0001724,2]
[419820573,1775397368748,1000.0,9.003e-05,2]
[419820576,1775397569760,18500.0,9e-05,2]
[419820577,1775397636590,3937.63816081,0.00034782,120]
[419820730,1775398022801,191.590741,7.624e-05,2]
[419820844,1775398231791,-480.11232265,0.00011209,2]
[419820845,1775398231844,-467.75899134,0.00011209,2]